Cogmind - Beta 13 @@@ ROGUE MODE // 2024.04.04 @ 13:03:55 Player: Devilhunter10 Result: Destroyed by P-60 Hacker with Shock Rifle Performance ------------- Evolutions (4) 2000 Regions Visited (7) 1400 Robots Destroyed (27) 135 Value Destroyed (1070) 1070 Prototype IDs (2) 40 Alien Tech Used (0) 0 Bonus (570) 570 TOTAL SCORE: 5215 Bonus ------- Pacifist 270 Aligned with FarCom 300 Cogmind --------- Core Integrity 0/850 Matter 178/300 Energy 94/100 System Corruption 4% Temperature Cool (2) Movement Walking (120) Location -6/Factory Parts ------- > --- POWER (2) -------- (None) > --- PROPULSION (6) --- Flexi-carbon Leg > --- UTILITY (4) ------ (None) > --- WEAPON (3) ------- (None) > --- INVENTORY (5) ---- Small Matter Pod (0) Advanced Targeting Computer Energy Filter Weapon Cycler Peak State ------------ > --- POWER ------------ Fusion Compressor > --- PROPULSION ------- Armored Huge Wheel Armored Huge Wheel > --- UTILITY ---------- Medium Storage Unit Improved Hacking Suite > --- WEAPON ----------- Plasma Rifle Plasma Rifle > --- INVENTORY -------- Fusion Compressor Gravmag System Small Matter Pod Improved Signal Interpreter Advanced Targeting Computer Weapon Cycler [Rating: 39] Favorites ----------- Power Light Ion Engine Engine Light Ion Engine Power Core Light Nuclear Core Propulsion Aluminum Leg Leg Aluminum Leg Wheel Armored Huge Wheel Hover Unit Gravmag System Utility Coolant Injector Device Coolant Injector Storage Small Storage Unit Processor Advanced Targeting Computer Hackware Improved Hacking Suite Protection Hardened Light Armor Plating Weapon Assault Rifle Energy Gun Plasma Rifle Ballistic Gun Assault Rifle Ballistic Cannon Advanced Assault Cannon Launcher Missile Launcher Build | -11 -10 -10 -10 -9 -8 -7 -6 ------- Run | Yrd Mat Min Exi Min Mat Fac Fac Slots Evolved 8 | . . . . . 4 2 2 Power 1 | . . . . . . 1 . Propulsion 4 | . . . . . 2 . 2 Utility 2 | . . . . . 2 . . Weapon 1 | . . . . . . 1 . Parts Attached 60 | 7 . 1 1 . 21 9 21 Power 13 | 2 . . . . 3 2 6 Engine 6 | 2 . . . . 2 1 1 Core 7 | . . . . . 1 1 5 Reactor . | . . . . . . . . Propulsion 17 | 2 . . . . 8 1 6 Treads . | . . . . . . . . Leg 13 | 2 . . . . 8 1 2 Wheel 2 | . . . . . . . 2 Hover 2 | . . . . . . . 2 Flight . | . . . . . . . . Utility 15 | 1 . 1 1 . 5 2 5 Device 6 | . . 1 1 . 2 1 1 Storage 3 | 1 . . . . 1 . 1 Processor 2 | . . . . . . . 2 Hackware 1 | . . . . . . . 1 Protection 3 | . . . . . 2 1 . Artifact . | . . . . . . . . Weapon 15 | 2 . . . . 5 4 4 Energy Gun 6 | . . . . . 3 . 3 Energy Cannon . | . . . . . . . . Ballistic Gun 7 | 2 . . . . 2 2 1 Ballistic Cannon 1 | . . . . . . 1 . Launcher 1 | . . . . . . 1 . Special Weapon . | . . . . . . . . Impact Weapon . | . . . . . . . . Slashing Weapon . | . . . . . . . . Piercing Weapon . | . . . . . . . . Special Melee Weapon . | . . . . . . . . Unidentified Prototypes 2 | . . . 1 . 1 . . Parts Lost 42 | . . . . . 13 14 15 Power 9 | . . . . . 2 3 4 Propulsion 14 | . . . . . 5 5 4 Utility 6 | . . . . . 1 2 3 Weapon 13 | . . . . . 5 4 4 Highest Loss Streak 12 | . . . . . 7 12 9 To Critical Strikes . | . . . . . . . . Average Slot Usage (%) 70 | . 85 96 100 100 77 75 28 Engine 6 | . 14 14 14 14 6 6 . Core 1 | . . . . . 1 1 2 Leg 17 | . 28 28 28 28 19 21 . Device 13 | . . 11 14 14 18 14 8 Storage 8 | . 14 14 14 14 9 7 5 Protection 3 | . . . . . 5 5 . Energy Gun 1 | . . . . . 3 1 2 Ballistic Gun 13 | . 28 28 28 28 13 13 . Naked Turns 54 | . . . . . . . 54 Heaviest Build 42 | 14 12 13 14 14 29 42 28 Greatest Support 56 | 20 20 20 20 20 40 40 56 Greatest Overweight (x) 8 | 1 . . . . 8 3 4 Average Overweight (x) . | . . . . . . . 1 Largest Inventory Capacity 10 | 8 8 8 8 8 10 10 10 Average Capacity 8 | 7 8 8 8 8 8 10 9 Most Carried 10 | 2 5 8 8 8 9 10 10 Average Carried 7 | . 4 7 7 7 7 8 6 Final Capacity 10 | 8 8 8 8 8 10 10 5 Final Carried 9 | 2 5 8 8 8 9 6 4 Class Distribution -------------------- 74% | Mutant 17% | Scavenger-Skirmisher 6% | Scavenger-Mutant Dominant Class ---------------- Mutant | -10/Materials Mutant | -10/Mines Mutant | -10/Exiles Mutant | -9/Mines Mutant | -8/Materials Scavenger-Skirmisher | -7/Factory Mutant | -6/Factory Resources | -11 -10 -10 -10 -9 -8 -7 -6 ----------- Run | Yrd Mat Min Exi Min Mat Fac Fac Matter Collected 1467 | 227 . 115 . 10 528 179 408 Remotely . | . . . . . . . . Salvage Created 1240 | . . . . . 781 265 194 Parts 61 | . . . . . 42 9 10 Haulers Intercepted . | . . . . . . . . Recyclers Shooed . | . . . . . . . . Parts Field Recycled . | . . . . . . . . Retrieved Matter . | . . . . . . . . Parts Self-Destructed . | . . . . . . . . Prevented . | . . . . . . . . Kills | -11 -10 -10 -10 -9 -8 -7 -6 ------- Run | Yrd Mat Min Exi Min Mat Fac Fac Combat Hostiles Destroyed 37 | . . . . . 18 15 4 Guns 26 | . . . . . 17 7 2 Cannons 3 | . . . . . . 3 . AOE 6 | . . . . . 1 5 . Classes Destroyed 7 | . . . . . 4 2 1 Worker 2 | . . . . . 2 . . Swarmer 6 | . . . . . 6 . . Grunt 12 | . . . . . 9 2 1 Sentry 3 | . . . . . 3 . . Hunter 1 | . . . . . . . 1 Programmer 3 | . . . . . . 1 2 Assembled 12 | . . . . . . 12 . Best Kill Streak 8 | . . . . . 4 8 1 Combat Bots Only 8 | . . . . . 4 8 1 Max Kills in Single Turn 2 | . . . . . 2 2 1 Gunslinging 1 | . . . . . 1 . . Exploded 2 | . . . . . 1 2 . Melee . | . . . . . . . . Uniques/NPCs Destroyed . | . . . . . . . . Combat | -11 -10 -10 -10 -9 -8 -7 -6 -------- Run | Yrd Mat Min Exi Min Mat Fac Fac Hostile Shots Fired 545 | . 1 . . . 187 94 263 Missed 159 | . 1 . . . 54 22 82 Damage Taken 5659 | . . . . . 1809 1539 2311 Core 1391 | . . . . . 288 250 853 Absorbed by Shields . | . . . . . . . . Core Remaining (%) 77 | 100 . . . 100 47 64 . Volleys Fired 140 | . 2 . . . 87 25 26 Largest 3 | . 2 . . . 2 3 2 Hottest 150 | . 40 . . . 88 112 150 Shots Fired 265 | . 4 . . . 155 70 36 Gun 243 | . 4 . . . 155 48 36 Cannon 16 | . . . . . . 16 . Launcher 6 | . . . . . . 6 . Special . | . . . . . . . . Kinetic 192 | . 4 . . . 116 64 8 Thermal 38 | . . . . . 10 . 28 Explosive 6 | . . . . . . 6 . Electromagnetic 29 | . . . . . 29 . . Robot Hit Streak 7 | . 2 . . . 6 6 7 Robot Miss Streak 5 | . 1 . . . 5 3 3 Penetration Max 1 | . . . . . . 1 . Secondary Targets 4 | . . . . . 3 1 . Max Gunslinging Chain 1 | . . . . . 1 1 . Shots Hit Robots 150 | . 2 . . . 87 37 24 Core Hits 68 | . . . . . 38 22 8 Critical Kills . | . . . . . . . . Critical Parts Destroyed . | . . . . . . . . Critical Strikes 4 | . . . . . . . 4 Burn 4 | . . . . . . . 4 Melee Attacks . | . . . . . . . . Impact . | . . . . . . . . Slashing . | . . . . . . . . Piercing . | . . . . . . . . Sneak Attacks . | . . . . . . . . Combat Hostiles . | . . . . . . . . Follow-up Attacks . | . . . . . . . . Damage Inflicted 3151 | . 27 . . . 1264 1339 521 Guns 2392 | . 27 . . . 1214 630 521 Cannons 200 | . . . . . . 200 . Explosions 559 | . . . . . 50 509 . Melee . | . . . . . . . . Ramming . | . . . . . . . . Kinetic 1937 | . 27 . . . 950 830 130 Thermal 535 | . . . . . 144 . 391 Explosive 509 | . . . . . . 509 . Electromagnetic 170 | . . . . . 170 . . Impact . | . . . . . . . . Slashing . | . . . . . . . . Piercing . | . . . . . . . . Highest Corruption 5 | . . . . . 1 5 4 Average Corruption 2 | . . . . . 1 4 2 Corruption Purged . | . . . . . . . . Corruption Blocked . | . . . . . . . . Effects 20 | . . . . . 7 6 7 Message Errors 5 | . . . . . 1 1 3 Matter Fused 6 | . . . . . 2 3 1 Heat Flow Errors 2 | . . . . . 1 . 1 Energy Discharges 1 | . . . . . 1 . . Data Loss (minor) 3 | . . . . . 1 1 1 Data Loss (major) 1 | . . . . . . 1 . Misfires 1 | . . . . . 1 . . Alerts 1 | . . . . . . . 1 Overload Shots . | . . . . . . . . Overflow Damage 71 | . . . . . . 71 . Projectiles . | . . . . . . . . Explosions 71 | . . . . . . 71 . Melee . | . . . . . . . . Knockbacks 3 | . . . . . . 3 . Impact . | . . . . . . . . Kinetic 3 | . . . . . . 3 . Secondary . | . . . . . . . . Self-Inflicted Damage 94 | . . . . . . 94 . Shots 3 | . . . . . . 3 . Rammed . | . . . . . . . . Targets Rammed . | . . . . . . . . Kicked . | . . . . . . . . Crushed . | . . . . . . . . Highest Temperature 276 | . . . . . 189 193 276 Average Temperature 89 | . . . . . 76 57 142 Received Heat Transfer 1604 | . . . . . 990 110 504 Siege Activations . | . . . . . . . . Robots Corrupted . | . . . . . . . . Combat Hostiles . | . . . . . . . . Parts Fried . | . . . . . . . . Impact Corruptions . | . . . . . . . . Robots Melted 2 | . . . . . . . 2 Combat Hostiles 2 | . . . . . . . 2 Parts Melted 6 | . . . . . . . 6 Heat Transferred 1496 | . . . . . 272 . 1224 Parts Sabotaged . | . . . . . . . . Parts Stolen . | . . . . . . . . Parts Stripped . | . . . . . . . . Power Chain Reactions 1 | . . . . . 1 . . Alert | -11 -10 -10 -10 -9 -8 -7 -6 ------- Run | Yrd Mat Min Exi Min Mat Fac Fac Peak Influence 217 | . 6 1 . . 217 148 155 Initial 88 | . . 1 . . . 88 7 Average 42 | . 4 1 . . 71 42 34 Maximum Alert Level 1 | . . . . . 1 . . Low Security (%) 97 | 100 100 100 . 100 92 100 100 Level 1 2 | . . . . . 7 . . Level 2 . | . . . . . . . . Level 3 . | . . . . . . . . Level 4 . | . . . . . . . . Level 5 . | . . . . . . . . High Security . | . . . . . . . . Max Security . | . . . . . . . . Squads Dispatched 17 | . 1 . . . 3 3 10 Investigation 2 | . . . . . . 1 1 Extermination 5 | . . . . . . 2 3 Reinforcement 6 | . 1 . . . 2 . 3 Assault . | . . . . . . . . Garrison 4 | . . . . . 1 . 3 Intercept . | . . . . . . . . Searches Triggered . | . . . . . . . . Construction Impeded . | . . . . . . . . Haulers Reinforced . | . . . . . . . . Active Scanning Responses . | . . . . . . . . Cargo Convoy Interrupts . | . . . . . . . . Stealth | -11 -10 -10 -10 -9 -8 -7 -6 --------- Run | Yrd Mat Min Exi Min Mat Fac Fac Distress Signals 3 | . 1 . . . 2 . . Communications Jammed . | . . . . . . . . Distress Signals . | . . . . . . . . Times Spotted 66 | . 3 1 . . 24 20 18 Peak Tracking Total 8 | . 2 . . . 4 8 5 Tactical Retreats 6 | . . . . . 1 1 4 Traps | -11 -10 -10 -10 -9 -8 -7 -6 ------- Run | Yrd Mat Min Exi Min Mat Fac Fac Traps Triggered 3 | . . . . . . 1 2 Indirectly . | . . . . . . . . Trap Hack Attempts . | . . . . . . . . Triggered . | . . . . . . . . Disarmed . | . . . . . . . . Reprogrammed . | . . . . . . . . Reused . | . . . . . . . . Traps Extracted . | . . . . . . . . Installed . | . . . . . . . . Triggered . | . . . . . . . . Machines | -11 -10 -10 -10 -9 -8 -7 -6 ---------- Run | Yrd Mat Min Exi Min Mat Fac Fac Machines Disabled 6 | . . . . . 4 2 . Max in Single Turn 1 | . . . . . 1 1 . Machines Repaired . | . . . . . . . . Machines Dismantled . | . . . . . . . . Machines Sabotaged . | . . . . . . . . Overloaded Fab Kills . | . . . . . . . . Hacking | -11 -10 -10 -10 -9 -8 -7 -6 --------- Run | Yrd Mat Min Exi Min Mat Fac Fac Machines Accessed 11 | . 2 . . . 3 3 3 Terminals 9 | . 2 . . . 3 2 2 Fabricators 2 | . . . . . . 1 1 Repair Stations . | . . . . . . . . Recycling Units . | . . . . . . . . Scanalyzers . | . . . . . . . . Garrison Access . | . . . . . . . . Total Hacks 23 | . 2 . . . 9 4 8 Successful 10 | . 2 . . . 4 1 3 Failed 13 | . . . . . 5 3 5 Catastrophic 1 | . . . . . . 1 . Database Lockouts . | . . . . . . . . Manual 11 | . 2 . 1 . 5 1 2 Terminals 21 | . 2 . . . 9 3 7 Fabricators 2 | . . . . . . 1 1 Repair Stations . | . . . . . . . . Recycling Units . | . . . . . . . . Scanalyzers . | . . . . . . . . Garrison Access . | . . . . . . . . Terminal Hacks 6 | . 2 . . . 2 . 2 Locate Traps 1 | . . . . . . . 1 Zone Layout 5 | . 2 . . . 2 . 1 Fabricator Hacks 2 | . . . . . . 1 1 Network Status 2 | . . . . . . 1 1 Repair Station Hacks . | . . . . . . . . Recycling Unit Hacks . | . . . . . . . . Scanalyzer . | . . . . . . . . Garrison Access Hacks . | . . . . . . . . Unauthorized Hacks 2 | . . . . . 2 . . Terminals 2 | . . . . . 2 . . Assimilate 2 | . . . . . 2 . . Fabricators . | . . . . . . . . Repair Stations . | . . . . . . . . Recycling Units . | . . . . . . . . Scanalyzers . | . . . . . . . . Garrison Access . | . . . . . . . . Data Cores Recovered . | . . . . . . . . Used . | . . . . . . . . Hacking Detections 9 | . 1 . . . 2 3 3 Full Trace Events 3 | . . . . . 1 1 1 Feedback Events 1 | . . . . . 1 . . Corruption 1 | . . . . . 1 . . Feedback Blocked . | . . . . . . . . Robot Schematics Acquired . | . . . . . . . . Robots Built . | . . . . . . . . Authchips . | . . . . . . . . Time . | . . . . . . . . Total Robot Build Rating . | . . . . . . . . Part Schematics Acquired . | . . . . . . . . Parts Built . | . . . . . . . . Authchips . | . . . . . . . . Time . | . . . . . . . . Total Part Build Rating . | . . . . . . . . Parts Repaired . | . . . . . . . . Time . | . . . . . . . . Parts Recycled . | . . . . . . . . Recycled Matter . | . . . . . . . . Retrieved Matter . | . . . . . . . . Retrieved Components . | . . . . . . . . Parts Scanalyzed . | . . . . . . . . Part Schematics Acquired . | . . . . . . . . Parts Damaged . | . . . . . . . . Bothacking | -11 -10 -10 -10 -9 -8 -7 -6 ------------ Run | Yrd Mat Min Exi Min Mat Fac Fac Used RIF Installer . | . . . . . . . . Robots Hacked . | . . . . . . . . Non-combat . | . . . . . . . . Combat . | . . . . . . . . Robot Hacks Applied . | . . . . . . . . Relay Couplers Released . | . . . . . . . . Fabnet Peak Effective % . | . . . . . . . . Robots Rewired . | . . . . . . . . Allies Hacked . | . . . . . . . . Hacks Repelled . | . . . . . . . . Allies | -11 -10 -10 -10 -9 -8 -7 -6 -------- Run | Yrd Mat Min Exi Min Mat Fac Fac Total Allies 1 | . . . . . 1 . . Largest Group 1 | . . . . . 1 . . Highest-Rated Group 10 | . . . . . 10 . . Highest-Rated Ally 10 | . . . . . 10 . . Total Orders . | . . . . . . . . Ally Attacks . | . . . . . . . . Total Damage . | . . . . . . . . Kills . | . . . . . . . . Allies Corrupted . | . . . . . . . . Allies Melted . | . . . . . . . . Intel | -11 -10 -10 -10 -9 -8 -7 -6 ------- Run | Yrd Mat Min Exi Min Mat Fac Fac Robot Analysis Total . | . . . . . . . . Derelict Logs Recovered 1 | . . 1 . . . . . Drone Launches . | . . . . . . . . Drone Recoveries . | . . . . . . . . Exploration | -11 -10 -10 -10 -9 -8 -7 -6 ------------- Run | Yrd Mat Min Exi Min Mat Fac Fac Turns Passed 4010 | 66 143 148 306 239 1120 1111 877 Spaces Moved 2401 | 44 112 118 253 188 436 641 609 Core 396 | 4 . . . . 7 138 247 Treads . | . . . . . . . . Legs 1650 | 40 112 118 253 188 429 503 7 Wheels 254 | . . . . . . . 254 Hover 101 | . . . . . . . 101 Flight . | . . . . . . . . Fastest Speed 50 | 50 120 120 120 120 120 120 50 Average Speed 133 | 121 120 120 120 120 143 149 124 Slowest Speed 450 | 190 120 120 120 120 450 260 250 Overloaded Moves . | . . . . . . . . Propulsion Burnouts . | . . . . . . . . Robots Hopped . | . . . . . . . . Cave-ins Triggered . | . . . . . . . . Exploration Rate (%) 30 | 4 28 35 68 51 32 14 13 Regions Visited 7 Branch Regions 3 Pre-discovered Areas 2 | . . 1 . 1 . . . Known Exits Taken . | . . . . . . . . Unknown Exits Taken 7 | 1 1 1 1 1 1 1 . Scrap Searched 1 | . . . . 1 . . . Spaces Dug . | . . . . . . . . Terrain Destroyed 45 | . . . . . 1 44 . Melee . | . . . . . . . . Projectile 4 | . . . . . . 4 . AOE 41 | . . . . . 1 40 . Terrain Rammed . | . . . . . . . . Walls Destroyed . | . . . . . . . . Machines Disabled . | . . . . . . . . Actions | -11 -10 -10 -10 -9 -8 -7 -6 --------- Run | Yrd Mat Min Exi Min Mat Fac Fac Total 2950 | 53 116 124 255 202 769 739 692 Wait 304 | 1 . 2 . 13 215 56 17 Move 2394 | 43 111 117 252 187 435 640 609 Hop . | . . . . . . . . Pick Up 36 | 2 3 4 1 1 7 5 13 Fast Attach 24 | 6 . . . . 14 2 2 Attach 29 | . . 1 . . 4 5 19 Detach 4 | . . . . . . . 4 Swap 7 | 1 . . 1 . 3 2 . Drop 10 | . . . 1 1 4 4 . Fire 140 | . 2 . . . 87 25 26 Melee . | . . . . . . . . Ram . | . . . . . . . . Kick . | . . . . . . . . Crush . | . . . . . . . . Escape Stasis 2 | . . . . . . . 2 Rewire . | . . . . . . . . Trap . | . . . . . . . . Miscellaneous . | . . . . . . . . Route ------- -11/Scrapyard -10/Materials -10/Mines (discovered 2 exits: [*Mat] / *Exi) -10/Exiles -9/Mines -8/Materials -7/Factory -6/Factory History --------- Turn | Location | Event 12 | -11/Scrapyard | Discovered new exit (range 15) 67 | -11/Scrapyard | Entered Materials 135 | -10/Materials | Discovered new exit (range 11) 193 | -10/Materials | Met 8R-AWN 210 | -10/Materials | Entered Mines 212 | -10/Mines | Followed 8R-AWN into the Mines 232 | -10/Mines | Discovered new exit (range 14) 267 | -10/Mines | Learned location of Zion (-7) 308 | -10/Mines | Build established: Mutant 352 | -10/Mines | Discovered new exit (range 5) 358 | -10/Mines | Entered Exiles 387 | -10/Exiles | Welcomed by 8R-AWN 409 | -10/Exiles | Met EX-HEX 445 | -10/Exiles | Met EX-BIN 458 | -10/Exiles | Aligned with FarCom system 459 | -10/Exiles | Given EX-Vault access code 488 | -10/Exiles | Opened EX-Vault 495 | -10/Exiles | Found Prototype Device 496 | -10/Exiles | Identified Skeleton Box 521 | -10/Exiles | Warned to stay clear of 0b10 Research branches 561 | -10/Exiles | Met EX-DEC 652 | -10/Exiles | Discovered new exit (range 10) 664 | -10/Exiles | Left Exiles lab with Skeleton Box 664 | -10/Exiles | Entered Mines 846 | -9/Mines | YI-UF0 nonchalantly dropped a Grenade Launcher on the ground 885 | -9/Mines | Discovered new exit (range 15) 900 | -9/Mines | Learned location of Storage (-9) 903 | -9/Mines | Entered Materials 903 | -8/Materials | Evolved 4 slots: Propulsion x2, Utility x2 1529 | -8/Materials | Lost 3 parts (1p1n1w) 1769 | -8/Materials | Lost 7 parts (1p2n1u3w) 1805 | -8/Materials | Garrison activated, responded to threat 1871 | -8/Materials | Core integrity fell below 50% 1956 | -8/Materials | Discovered new exit (range 10) 2023 | -8/Materials | Entered Factory 2023 | -7/Factory | Evolved 2 slots: Power x1, Weapon x1 2138 | -7/Factory | Discovered new exit (range 14) 2549 | -7/Factory | Build established: Scavenger-Skirmisher 2777 | -7/Factory | Assembled infested ambush trap array 2861 | -7/Factory | Destroyed 8 combat bots 2889 | -7/Factory | Lost 12 parts (2p4n2u4w) 3134 | -7/Factory | Entered another Factory area 3134 | -6/Factory | Evolved 2 slots: Propulsion x2 3154 | -6/Factory | Build established: Mutant 3478 | -6/Factory | Garrison activated, responded to threat 3914 | -6/Factory | Core integrity fell below 50% 3923 | -6/Factory | Released all parts (4) 3925 | -6/Factory | Core integrity fell below 20% 3953 | -6/Factory | Lost 9 parts (3p3n3w) 4011 | -6/Factory | Destroyed by P-60 Hacker with Shock Rifle Last Messages --------------- 03916_ Carbon-fiber Leg destroyed. 03919_ Fusion Compressor destroyed. 03922_ Hvy. Laser destroyed. 03923_ Released Imp. Hacking Suite. 03923_ Released Med. Storage Unit. 03923_ Released Imp. Signal Interpreter. 03923_ Released Adv. Targeting Computer. 03925_ Critical hit (Burn: +37). 03972_ ALERT: Suspicious intruders detected, dispatching Cutter reinforcements to area. 03979_ Acquired Lgt. Fission Core. 03986_ Terminal disabled. 03988_ Gravmag System destroyed. 03988_ Knocked back. 03990_ Penetrated by Slug. 03990_ Lgt. Fission Core destroyed. 03990_ Knocked back. 03994_ System corrupted: Component data lost. 04003_ Acquired Flexi-carbon Leg. 04010_ UE6XQXI/P&J=S,C3OHYI Map ----- +----------------------------------------------------+ | ?????????????????????????????????????????????????? | | ?????????????????????????????????????????????????? | | ?????????????????????????????????????????????????? | | ?????????????????????????????????????????????????? | | ?????????????????????????????????????????????????? | | ?????????????????????????????????????????????????? | | ?????????????????????????????????????????????????? | | ?????????????????????????????????????????????????? | | ?????????????????????????????????????????????????? | | ?????????????????????????????????????????????????? | | ?????????????????????????????????????????????????? | | ?????????????????????????????????????????????????? | | ?????????????????????????????????????????????????? | | ?????????????????????????????????????????????????? | | ?????????????????????????????????????????????????? | | ?????????????????????????????????????????????????? | | ?????????????????????????????????????????????????? | | ?????????????????????????????????????????????????? | | ?????????????????????????????????????????????????? | | ?????????????????????????????????????????????????? | | ?????????????????????????????????????????????????? | | ????????????###########??????????????????????????? | | ????????????# #######????????????????????? | | ????????????#"""" # #????????????????????? | | ????????????#"""" # ##???????????????????? | | ????????????#"""" + @ +???????????????????? | | ????????????#"""" # ##???????????????????? | | ????????????#"""" # #????????????????????? | | ????????????#"""" ##p ##????????????????????? | | ????????????# ## #?????????????????????? | | ????????????############ #??????????????????#??? | | ???????????????????????# #????????????????? #??? | | ???????????????????????# #???????????????? #??? | | ???????????????????????# #??????????????? #??? | | ???????????????" "????## ##?????????????# ##?? | | ???????????????" """??# ####"######### #?? | | ?????????????""" """ # T % % #?? | | ?????????# c " H #?? | | ?????????????""" c# g #?? | | ?????????????""" c??# ##########+### #?? | | ?????????????""" ????#######???# #???????? | | ???????????? ????????????????# """" !#???????? | | ??????????? =??????????????????# """" #???????? | | ?????????? ????????????????????# """" #???????? | | ????????????????????????????????#= """" #???????? | | ????????????????????????????????# """" /???????? | | ????????????????????????????????# """" ##??????? | | ????????????????????????????????# """" #???????? | | ????????????????????????????????# #???????? | | ????????????????????????????????##+##+####???????? | +----------------------------------------------------+ Best States ------------- Heat Dissipation 51 Coolant Potential 115 Energy Generation 38 Energy Capacity 310 Matter Stores 300 Matter Capacity 350 Sight Range 16 Terrain Scan Density 10 Jamming Range 12 Armor Coverage 150 Resistance: KI 20 Evasion (%) 55 Targeting Accuracy 8 Offensive Hacking 12 Item Schematics ----------------- None Robot Schematics ------------------ None Fabricated ------------ Nothing Alien Tech Used ----------------- None Achievements -------------- None Challenges ------------ None Game ------ Seed BackupPlasmaCarapace Manual? 0 Play Time 00:39:08 Cumulative 9.5 hours Start 2024.04.04 @ 12:25:27 End 2024.04.04 @ 13:03:55 Sessions 1 Manual Loads 0 Difficulty Rogue Special Mode None Game No. 19 Rogue 19 Adventurer 0 Explorer 0 Win Type - Total 0 Types 0/0/0/0/0/0/0/0/0 Lore% 15 Gallery% 18 Achievement% 16 Wizard Run 0 Options --------- Layout 1 ASCII 0 Keyboard 0 Movement Numpad Keybinds 0 Fullscreen 1 Font 24/Terminus Map View 50x35 Zoom Use 0% Tactical HUD 1 Map Filters NONE Filters NONE Steam 1 RUN: ba583199-e85b-4d0d-933f-d1e5aca02321